[Event "Titled Tuesday Blitz April 18 Late 2023"]
[White "Nemsko"]
[Black "Hirneise, Jens"]
[BlackFideId "24614734"]
[WhiteElo "2293"]
[BlackElo "2345"]
[Result "1-0"]
[Round "09"]
[TimeControl "180+2"]
[Date "2023.04.18"]
[WhiteClock "0:00:07"]
[BlackClock "0:00:04"]

1. d4 {[%clk 0:03:00]}  d5 {[%clk 0:02:58]} 2. Nc3 {[%clk 0:03:00]}  c6 {[%clk 0:02:55]} 3. Bf4 {[%clk 0:02:58]}  Nf6 {[%clk 0:02:53]} 4. e3 {[%clk 0:02:56]}  b5 {[%clk 0:02:53]} 5. Bd3 {[%clk 0:02:54]}  b4 {[%clk 0:02:48]} 6. Nce2 {[%clk 0:02:53]}  e6 {[%clk 0:02:39]} 7. Nf3 {[%clk 0:02:51]}  Be7 {[%clk 0:02:37]} 8. O-O {[%clk 0:02:46]}  O-O {[%clk 0:02:37]} 9. Ne5 {[%clk 0:02:46]}  c5 {[%clk 0:02:35]} 10. c3 {[%clk 0:02:43]}  bxc3 {[%clk 0:02:34]} 11. bxc3 {[%clk 0:02:44]}  cxd4 {[%clk 0:02:28]} 12. cxd4 {[%clk 0:02:38]}  Nfd7 {[%clk 0:02:23]} 13. Qc2 {[%clk 0:02:26]}  g6 {[%clk 0:02:17]} 14. Nc6 {[%clk 0:02:18]}  Nxc6 {[%clk 0:02:13]} 15. Qxc6 {[%clk 0:02:19]}  Nb6 {[%clk 0:02:14]} 16. Rfc1 {[%clk 0:01:54]}  Bd7 {[%clk 0:02:12]} 17. Qb7 {[%clk 0:01:51]}  Bc8 {[%clk 0:02:01]} 18. Qc6 {[%clk 0:01:45]}  Bd7 {[%clk 0:01:59]} 19. Qb7 {[%clk 0:01:19]}  g5 {[%clk 0:01:35]} 20. Bg3 {[%clk 0:01:12]}  h5 {[%clk 0:01:32]} 21. h3 {[%clk 0:01:07]}  h4 {[%clk 0:01:32]} 22. Bh2 {[%clk 0:01:07]}  Ba4 {[%clk 0:01:23]} 23. Nc3 {[%clk 0:00:52]}  Bd7 {[%clk 0:01:06]} 24. Nb5 {[%clk 0:00:46]}  Bxb5 {[%clk 0:00:56]} 25. Bxb5 {[%clk 0:00:47]}  Bd6 {[%clk 0:00:53]} 26. Bxd6 {[%clk 0:00:27]}  Qxd6 {[%clk 0:00:54]} 27. Rc6 {[%clk 0:00:28]}  Qb4 {[%clk 0:00:50]} 28. a4 {[%clk 0:00:27]}  Rfb8 {[%clk 0:00:42]} 29. Qa6 {[%clk 0:00:24]}  Nc8 {[%clk 0:00:18]} 30. Rac1 {[%clk 0:00:22]}  Ne7 {[%clk 0:00:18]} 31. Rd6 {[%clk 0:00:11]}  Nf5 {[%clk 0:00:16]} 32. Rd7 {[%clk 0:00:09]}  Qd2 {[%clk 0:00:12]} 33. Qc6 {[%clk 0:00:07]}  Rc8 {[%clk 0:00:10]} 34. Rc7 {[%clk 0:00:06]}  Rd8 {[%clk 0:00:05]} 35. Bf1 {[%clk 0:00:04]}  Nd6 {[%clk 0:00:04]} 36. Rc2 {[%clk 0:00:04]}  Qd1 {[%clk 0:00:04]} 37. Rc1 {[%clk 0:00:03]}  Qb3 {[%clk 0:00:04]} 38. Rc3 {[%clk 0:00:03]}  Qb2 {[%clk 0:00:04]} 39. Rc2 {[%clk 0:00:03]}  Qb4 {[%clk 0:00:04]} 40. Qc5 {[%clk 0:00:02]}  Qxc5 {[%clk 0:00:04]} 41. R2xc5 {[%clk 0:00:03]}  Ne4 {[%clk 0:00:05]} 42. Rb5 {[%clk 0:00:03]}  a6 {[%clk 0:00:05]} 43. Rbb7 {[%clk 0:00:03]}  Rf8 {[%clk 0:00:05]} 44. Rd7 {[%clk 0:00:03]}  Nf6 {[%clk 0:00:05]} 45. Rdc7 {[%clk 0:00:03]}  a5 {[%clk 0:00:06]} 46. Bd3 {[%clk 0:00:04]}  Kg7 {[%clk 0:00:06]} 47. Bb5 {[%clk 0:00:04]}  Ng8 {[%clk 0:00:05]} 48. f3 {[%clk 0:00:05]}  Nh6 {[%clk 0:00:06]} 49. Kf2 {[%clk 0:00:05]}  Nf5 {[%clk 0:00:06]} 50. Bd7 {[%clk 0:00:05]}  Nd6 {[%clk 0:00:06]} 51. Ra7 {[%clk 0:00:05]}  Rxa7 {[%clk 0:00:05]} 52. Rxa7 {[%clk 0:00:06]}  Kf6 {[%clk 0:00:06]} 53. Rxa5 {[%clk 0:00:06]}  Rb8 {[%clk 0:00:06]} 54. Bb5 {[%clk 0:00:06]}  Rc8 {[%clk 0:00:07]} 55. Ra7 {[%clk 0:00:06]}  Rc2+ {[%clk 0:00:06]} 56. Be2 {[%clk 0:00:06]}  Nc4 {[%clk 0:00:06]} 57. a5 {[%clk 0:00:06]}  Ra2 {[%clk 0:00:07]} 58. a6 {[%clk 0:00:06]}  Nb2 {[%clk 0:00:04]} 59. e4 {[%clk 0:00:06]}  dxe4 {[%clk 0:00:03]} 60. fxe4 {[%clk 0:00:06]}  Nc4 {[%clk 0:00:03]} 61. Ra8 {[%clk 0:00:05]}  Nb6 {[%clk 0:00:03]} 62. Ra7 {[%clk 0:00:05]}  Kg7 {[%clk 0:00:03]} 63. Ke3 {[%clk 0:00:04]}  Ra3+ {[%clk 0:00:03]} 64. Kf2 {[%clk 0:00:03]}  Ra2 {[%clk 0:00:03]} 65. Ke3 {[%clk 0:00:03]}  Ra3+ {[%clk 0:00:02]} 66. Bd3 {[%clk 0:00:03]}  Nc4+ {[%clk 0:00:03]} 67. Ke2 {[%clk 0:00:04]}  Ra2+ {[%clk 0:00:03]} 68. Kf3 {[%clk 0:00:04]}  Nd2+ {[%clk 0:00:03]} 69. Ke3 {[%clk 0:00:03]}  Nb3 {[%clk 0:00:04]} 70. Rb7 {[%clk 0:00:03]}  Nc1 {[%clk 0:00:04]} 71. a7 {[%clk 0:00:03]}  Nxd3 {[%clk 0:00:04]} 72. Kxd3 {[%clk 0:00:03]}  Ra3+ {[%clk 0:00:04]} 73. Kc4 {[%clk 0:00:03]}  Ra2 {[%clk 0:00:04]} 74. Kb5 {[%clk 0:00:04]}  Rb2+ {[%clk 0:00:04]} 75. Kc6 {[%clk 0:00:04]}  Ra2 {[%clk 0:00:04]} 76. Kc7 {[%clk 0:00:04]}  Ra4 {[%clk 0:00:03]} 77. Kb8 {[%clk 0:00:04]}  Rxd4 {[%clk 0:00:02]} 78. a8=Q {[%clk 0:00:05]}  Rxe4 {[%clk 0:00:03]} 79. Qa7 {[%clk 0:00:04]}  Rf4 {[%clk 0:00:03]} 80. Re7 {[%clk 0:00:04]}  e5 {[%clk 0:00:04]} 81. Ka8 {[%clk 0:00:05]}  Kf6 {[%clk 0:00:03]} 82. Qc7 {[%clk 0:00:05]}  Rf5 {[%clk 0:00:03]} 83. Qd6+ {[%clk 0:00:05]}  Kg7 {[%clk 0:00:03]} 84. Rxe5 {[%clk 0:00:05]}  Rf6 {[%clk 0:00:04]} 85. Qd4 {[%clk 0:00:05]}  Kg6 {[%clk 0:00:04]} 86. Re4 {[%clk 0:00:05]}  Ra6+ {[%clk 0:00:04]} 87. Kb7 {[%clk 0:00:05]}  Rf6 {[%clk 0:00:04]} 88. Qd3 {[%clk 0:00:05]}  Kg7 {[%clk 0:00:04]} 89. Rg4 {[%clk 0:00:06]}  Rg6 {[%clk 0:00:04]} 90. Qf5 {[%clk 0:00:06]}  f6 {[%clk 0:00:04]} 91. Qd7+ {[%clk 0:00:06]}  Kh6 {[%clk 0:00:05]} 92. Qe8 {[%clk 0:00:06]}  Rg7+ {[%clk 0:00:05]} 93. Kc6 {[%clk 0:00:06]}  f5 {[%clk 0:00:05]} 94. Qh8+ {[%clk 0:00:06]}  Kg6 {[%clk 0:00:05]} 95. Rd4 {[%clk 0:00:06]}  Rf7 {[%clk 0:00:05]} 96. Rd6+ {[%clk 0:00:07]}  Rf6 {[%clk 0:00:04]} 97. Rxf6# {[%clk 0:00:07]} 1-0


[Site "https://www.chess.com"]

[Event "Titled Tuesday Blitz April 18 Late 2023"]
[White "Szente Varga, Fruzsina"]
[Black "Antonio, Jorge Carlos"]
[WhiteFideId "712264"]
[BlackFideId "113190"]
[WhiteElo "1994"]
[BlackElo "2247"]
[Result "1-0"]
[Round "09"]
[TimeControl "180+2"]
[Date "2023.04.18"]
[WhiteClock "0:00:48"]
[BlackClock "0:00:02"]

1. e4 {[%clk 0:02:51]}  c5 {[%clk 0:02:59]} 2. Nf3 {[%clk 0:02:50]}  e6 {[%clk 0:02:59]} 3. b3 {[%clk 0:02:50]}  Nc6 {[%clk 0:02:57]} 4. Bb2 {[%clk 0:02:50]}  d5 {[%clk 0:02:54]} 5. exd5 {[%clk 0:02:50]}  exd5 {[%clk 0:02:52]} 6. Bb5 {[%clk 0:02:50]}  Qe7+ {[%clk 0:02:47]} 7. Qe2 {[%clk 0:02:50]}  Qxe2+ {[%clk 0:02:44]} 8. Kxe2 {[%clk 0:02:51]}  Ne7 {[%clk 0:02:39]} 9. Re1 {[%clk 0:02:41]}  f6 {[%clk 0:02:36]} 10. Kf1 {[%clk 0:02:37]}  Kf7 {[%clk 0:02:36]} 11. d4 {[%clk 0:02:29]}  cxd4 {[%clk 0:02:32]} 12. Nxd4 {[%clk 0:02:28]}  Nxd4 {[%clk 0:02:30]} 13. Bxd4 {[%clk 0:02:29]}  Bf5 {[%clk 0:02:27]} 14. c4 {[%clk 0:02:27]}  a6 {[%clk 0:02:24]} 15. Ba4 {[%clk 0:02:26]}  b5 {[%clk 0:02:15]} 16. cxb5 {[%clk 0:02:06]}  Bd3+ {[%clk 0:02:13]} 17. Kg1 {[%clk 0:02:07]}  axb5 {[%clk 0:02:10]} 18. Nc3 {[%clk 0:02:08]}  bxa4 {[%clk 0:02:10]} 19. Nxa4 {[%clk 0:02:09]}  Nf5 {[%clk 0:02:02]} 20. Bb2 {[%clk 0:02:05]}  Bb4 {[%clk 0:01:59]} 21. Red1 {[%clk 0:02:05]}  Bb5 {[%clk 0:01:57]} 22. Nb6 {[%clk 0:02:04]}  Rad8 {[%clk 0:01:55]} 23. Nxd5 {[%clk 0:02:04]}  Be7 {[%clk 0:01:35]} 24. a4 {[%clk 0:02:00]}  Bc6 {[%clk 0:01:34]} 25. Nb6 {[%clk 0:01:59]}  Rxd1+ {[%clk 0:01:32]} 26. Rxd1 {[%clk 0:02:00]}  Bb4 {[%clk 0:01:23]} 27. h3 {[%clk 0:01:45]}  h5 {[%clk 0:01:22]} 28. Rc1 {[%clk 0:01:38]}  Be4 {[%clk 0:01:08]} 29. Rc4 {[%clk 0:01:33]}  Ba5 {[%clk 0:01:00]} 30. Nd7 {[%clk 0:01:26]}  Nd6 {[%clk 0:00:48]} 31. Rd4 {[%clk 0:01:20]}  Bc7 {[%clk 0:00:45]} 32. Ba3 {[%clk 0:01:19]}  Ke6 {[%clk 0:00:41]} 33. Nc5+ {[%clk 0:01:19]}  Ke5 {[%clk 0:00:40]} 34. Bb2 {[%clk 0:01:19]}  Kf5 {[%clk 0:00:33]} 35. Na6 {[%clk 0:01:03]}  Rc8 {[%clk 0:00:17]} 36. Nxc7 {[%clk 0:01:01]}  Rxc7 {[%clk 0:00:17]} 37. Rxd6 {[%clk 0:01:02]}  Rc2 {[%clk 0:00:17]} 38. Bd4 {[%clk 0:00:59]}  h4 {[%clk 0:00:13]} 39. Be3 {[%clk 0:00:56]}  Rb2 {[%clk 0:00:11]} 40. Rb6 {[%clk 0:00:56]}  g5 {[%clk 0:00:08]} 41. a5 {[%clk 0:00:54]}  Bc2 {[%clk 0:00:06]} 42. b4 {[%clk 0:00:54]}  Bd3 {[%clk 0:00:02]} 43. Rxf6+ {[%clk 0:00:48]} 1-0


[Site "https://www.chess.com"]

[Event "Titled Tuesday Blitz April 18 Late 2023"]
[White "mjelcic"]
[Black "lluiss"]
[WhiteElo "2191"]
[BlackElo "2307"]
[Result "1/2-1/2"]
[Round "09"]
[TimeControl "180+2"]
[Date "2023.04.18"]
[WhiteClock "0:01:04"]
[BlackClock "0:00:46"]

1. c4 {[%clk 0:03:00]}  Nf6 {[%clk 0:02:58]} 2. Nc3 {[%clk 0:03:00]}  d5 {[%clk 0:02:58]} 3. d4 {[%clk 0:02:54]}  g6 {[%clk 0:02:56]} 4. Nf3 {[%clk 0:02:44]}  Bg7 {[%clk 0:02:56]} 5. e3 {[%clk 0:02:42]}  O-O {[%clk 0:02:55]} 6. b3 {[%clk 0:02:42]}  c5 {[%clk 0:02:52]} 7. Bb2 {[%clk 0:02:40]}  cxd4 {[%clk 0:02:52]} 8. exd4 {[%clk 0:02:27]}  Nc6 {[%clk 0:02:37]} 9. Be2 {[%clk 0:02:12]}  Bg4 {[%clk 0:02:37]} 10. Nxd5 {[%clk 0:02:06]}  Nxd5 {[%clk 0:02:33]} 11. cxd5 {[%clk 0:02:06]}  Qxd5 {[%clk 0:02:33]} 12. O-O {[%clk 0:02:06]}  Rad8 {[%clk 0:02:10]} 13. h3 {[%clk 0:02:06]}  Bf5 {[%clk 0:02:05]} 14. Rc1 {[%clk 0:02:02]}  Nxd4 {[%clk 0:01:38]} 15. Nxd4 {[%clk 0:02:00]}  Bxd4 {[%clk 0:01:37]} 16. Bf3 {[%clk 0:02:00]}  Be4 {[%clk 0:01:32]} 17. Bxd4 {[%clk 0:01:48]}  Qxd4 {[%clk 0:01:30]} 18. Qxd4 {[%clk 0:01:35]}  Rxd4 {[%clk 0:01:29]} 19. Bxe4 {[%clk 0:01:34]}  Rxe4 {[%clk 0:01:29]} 20. Rc7 {[%clk 0:01:34]}  Rb8 {[%clk 0:01:25]} 21. Rd1 {[%clk 0:01:32]}  a5 {[%clk 0:01:01]} 22. Rdd7 {[%clk 0:01:32]}  a4 {[%clk 0:00:58]} 23. bxa4 {[%clk 0:01:19]}  Ra8 {[%clk 0:00:50]} 24. Rxb7 {[%clk 0:01:11]}  Raxa4 {[%clk 0:00:50]} 25. Rxe7 {[%clk 0:01:05]}  Rxe7 {[%clk 0:00:48]} 26. Rxe7 {[%clk 0:01:06]}  Rxa2 {[%clk 0:00:48]} 27. g3 {[%clk 0:01:04]}  Kg7 {[%clk 0:00:47]} 28. Re3 {[%clk 0:01:04]}  h5 {[%clk 0:00:47]} 29. h4 {[%clk 0:01:04]}  Rb2 {[%clk 0:00:47]} 30. Kg2 {[%clk 0:01:04]}  Ra2 {[%clk 0:00:47]} 31. Rb3 {[%clk 0:01:04]}  Rc2 {[%clk 0:00:47]} 32. Rb7 {[%clk 0:01:04]}  Ra2 {[%clk 0:00:46]} 33. Rc7 {[%clk 0:01:05]}  Rb2 {[%clk 0:00:46]} 34. Ra7 {[%clk 0:01:05]}  Rd2 {[%clk 0:00:46]} 35. Rb7 {[%clk 0:01:04]}  Rd3 {[%clk 0:00:46]} 1/2-1/2


[Site "https://www.chess.com"]

[Event "Titled Tuesday Blitz April 18 Late 2023"]
[White "QuiesPrecatio"]
[Black "Kovacevic, Radmila"]
[BlackFideId "933171"]
[WhiteElo "2428"]
[BlackElo "2194"]
[Result "0-1"]
[Round "09"]
[TimeControl "180+2"]
[Date "2023.04.18"]
[WhiteClock "0:00:03"]
[BlackClock "0:00:06"]

1. e4 {[%clk 0:03:00]}  e5 {[%clk 0:03:00]} 2. Nf3 {[%clk 0:02:59]}  d5 {[%clk 0:03:00]} 3. exd5 {[%clk 0:02:56]}  e4 {[%clk 0:03:00]} 4. Qe2 {[%clk 0:02:55]}  Nf6 {[%clk 0:03:01]} 5. Nc3 {[%clk 0:02:55]}  Be7 {[%clk 0:03:01]} 6. Nxe4 {[%clk 0:02:54]}  O-O {[%clk 0:03:01]} 7. d3 {[%clk 0:02:44]}  Nxd5 {[%clk 0:03:00]} 8. Qd1 {[%clk 0:02:35]}  f5 {[%clk 0:02:57]} 9. Nc3 {[%clk 0:02:33]}  Bb4 {[%clk 0:02:57]} 10. Bd2 {[%clk 0:02:32]}  Re8+ {[%clk 0:02:55]} 11. Be2 {[%clk 0:02:31]}  Bxc3 {[%clk 0:02:50]} 12. bxc3 {[%clk 0:02:30]}  Qf6 {[%clk 0:02:43]} 13. c4 {[%clk 0:02:27]}  Nc3 {[%clk 0:02:37]} 14. Bxc3 {[%clk 0:02:27]}  Qxc3+ {[%clk 0:02:36]} 15. Nd2 {[%clk 0:02:28]}  Qe5 {[%clk 0:02:31]} 16. Nf3 {[%clk 0:02:16]}  Qc3+ {[%clk 0:02:29]} 17. Kf1 {[%clk 0:02:16]}  Nc6 {[%clk 0:02:28]} 18. Qe1 {[%clk 0:02:14]}  Qxc2 {[%clk 0:02:23]} 19. Qd2 {[%clk 0:02:08]}  Qxd2 {[%clk 0:02:05]} 20. Nxd2 {[%clk 0:02:09]}  Nd4 {[%clk 0:02:02]} 21. Re1 {[%clk 0:01:56]}  Bd7 {[%clk 0:01:52]} 22. Nf3 {[%clk 0:01:42]}  Ne6 {[%clk 0:01:26]} 23. Ne5 {[%clk 0:01:20]}  Ba4 {[%clk 0:01:20]} 24. Bf3 {[%clk 0:01:16]}  c6 {[%clk 0:01:13]} 25. Bd1 {[%clk 0:00:53]}  Bxd1 {[%clk 0:01:02]} 26. Rxd1 {[%clk 0:00:54]}  Rad8 {[%clk 0:01:01]} 27. g3 {[%clk 0:00:51]}  Nd4 {[%clk 0:00:59]} 28. f4 {[%clk 0:00:40]}  g5 {[%clk 0:00:52]} 29. Kf2 {[%clk 0:00:33]}  Ne6 {[%clk 0:00:46]} 30. fxg5 {[%clk 0:00:19]}  Nxg5 {[%clk 0:00:41]} 31. Rhe1 {[%clk 0:00:19]}  Kg7 {[%clk 0:00:25]} 32. d4 {[%clk 0:00:17]}  Ne4+ {[%clk 0:00:22]} 33. Ke3 {[%clk 0:00:17]}  Nc3 {[%clk 0:00:20]} 34. Rd2 {[%clk 0:00:11]}  Ne4 {[%clk 0:00:18]} 35. Rb2 {[%clk 0:00:08]}  b5 {[%clk 0:00:16]} 36. Rc1 {[%clk 0:00:06]}  c5 {[%clk 0:00:16]} 37. Nc6 {[%clk 0:00:05]}  cxd4+ {[%clk 0:00:14]} 38. Nxd4 {[%clk 0:00:04]}  bxc4 {[%clk 0:00:11]} 39. Nxf5+ {[%clk 0:00:04]}  Kf6 {[%clk 0:00:11]} 40. Nh4 {[%clk 0:00:04]}  c3 {[%clk 0:00:10]} 41. Rbc2 {[%clk 0:00:02]}  Rd2 {[%clk 0:00:09]} 42. Rxd2 {[%clk 0:00:02]}  cxd2 {[%clk 0:00:09]} 43. Rc6+ {[%clk 0:00:02]}  Kg7 {[%clk 0:00:07]} 44. Ke2 {[%clk 0:00:02]}  Rd8 {[%clk 0:00:06]} 45. Kd1 {[%clk 0:00:03]}  Nf2+ {[%clk 0:00:06]} 0-1


[Site "https://www.chess.com"]

[Event "Titled Tuesday Blitz April 18 Late 2023"]
[White "Alexikov, Alexander"]
[Black "De Souza, Cristiano Gomes"]
[WhiteFideId "14103958"]
[BlackFideId "2151758"]
[WhiteElo "2186"]
[BlackElo "2068"]
[Result "1-0"]
[Round "09"]
[TimeControl "180+2"]
[Date "2023.04.18"]
[WhiteClock "0:00:49"]
[BlackClock "0:01:47"]

1. e4 {[%clk 0:03:00]}  c5 {[%clk 0:02:59]} 2. Nf3 {[%clk 0:02:59]}  d6 {[%clk 0:03:00]} 3. Bb5+ {[%clk 0:02:58]}  Bd7 {[%clk 0:02:59]} 4. a4 {[%clk 0:02:56]}  g6 {[%clk 0:02:59]} 5. c3 {[%clk 0:02:55]}  Bg7 {[%clk 0:02:59]} 6. d4 {[%clk 0:02:53]}  cxd4 {[%clk 0:02:58]} 7. cxd4 {[%clk 0:02:53]}  a6 {[%clk 0:02:57]} 8. Bxd7+ {[%clk 0:02:49]}  Nxd7 {[%clk 0:02:58]} 9. Nc3 {[%clk 0:02:48]}  Rc8 {[%clk 0:02:58]} 10. O-O {[%clk 0:02:47]}  e6 {[%clk 0:02:55]} 11. a5 {[%clk 0:02:35]}  Ne7 {[%clk 0:02:55]} 12. Bg5 {[%clk 0:02:30]}  O-O {[%clk 0:02:54]} 13. Qb3 {[%clk 0:02:17]}  Rc7 {[%clk 0:02:45]} 14. Rfe1 {[%clk 0:02:10]}  h6 {[%clk 0:02:45]} 15. Be3 {[%clk 0:02:08]}  Nc6 {[%clk 0:02:39]} 16. Qa3 {[%clk 0:02:01]}  Nf6 {[%clk 0:02:34]} 17. h3 {[%clk 0:01:55]}  d5 {[%clk 0:02:32]} 18. e5 {[%clk 0:01:54]}  Ne4 {[%clk 0:02:31]} 19. Red1 {[%clk 0:01:44]}  Nxc3 {[%clk 0:02:28]} 20. bxc3 {[%clk 0:01:43]}  Ne7 {[%clk 0:02:27]} 21. Rdb1 {[%clk 0:01:38]}  Qd7 {[%clk 0:02:26]} 22. Rb3 {[%clk 0:01:36]}  Rfc8 {[%clk 0:02:26]} 23. Rab1 {[%clk 0:01:35]}  Nf5 {[%clk 0:02:26]} 24. Bd2 {[%clk 0:01:34]}  Bf8 {[%clk 0:02:26]} 25. Qa2 {[%clk 0:01:33]}  h5 {[%clk 0:02:22]} 26. Ne1 {[%clk 0:01:29]}  Be7 {[%clk 0:02:12]} 27. Nd3 {[%clk 0:01:24]}  Qd8 {[%clk 0:02:08]} 28. Rxb7 {[%clk 0:01:19]}  Bg5 {[%clk 0:02:06]} 29. f4 {[%clk 0:01:17]}  Bh4 {[%clk 0:02:04]} 30. Qb2 {[%clk 0:01:05]}  Nxd4 {[%clk 0:01:54]} 31. Rxc7 {[%clk 0:00:59]}  Qxc7 {[%clk 0:01:51]} 32. cxd4 {[%clk 0:00:57]}  Qc4 {[%clk 0:01:47]} 33. Rc1 {[%clk 0:00:49]} 1-0


[Site "https://www.chess.com"]

[Event "Titled Tuesday Blitz April 18 Late 2023"]
[White "Ng, Gary"]
[Black "Broca Jimenez, Fernando"]
[WhiteFideId "2604914"]
[BlackFideId "5104742"]
[WhiteElo "2297"]
[BlackElo "2062"]
[Result "1-0"]
[Round "09"]
[TimeControl "180+2"]
[Date "2023.04.18"]
[WhiteClock "0:00:16"]
[BlackClock "0:00:08"]

1. d4 {[%clk 0:03:00]}  g6 {[%clk 0:03:00]} 2. Be3 {[%clk 0:03:00]}  Bg7 {[%clk 0:02:59]} 3. Nc3 {[%clk 0:03:00]}  Nf6 {[%clk 0:02:58]} 4. h4 {[%clk 0:03:00]}  O-O {[%clk 0:02:56]} 5. f3 {[%clk 0:02:59]}  d6 {[%clk 0:02:54]} 6. Qd2 {[%clk 0:03:00]}  e5 {[%clk 0:02:44]} 7. d5 {[%clk 0:02:59]}  Nh5 {[%clk 0:02:36]} 8. g4 {[%clk 0:02:50]}  Ng3 {[%clk 0:02:35]} 9. Rh3 {[%clk 0:02:50]}  Nxf1 {[%clk 0:02:35]} 10. Kxf1 {[%clk 0:02:51]}  f5 {[%clk 0:02:32]} 11. Bg5 {[%clk 0:02:41]}  Bf6 {[%clk 0:02:21]} 12. gxf5 {[%clk 0:02:40]}  Bxf5 {[%clk 0:02:09]} 13. Rg3 {[%clk 0:02:35]}  Bxg5 {[%clk 0:02:07]} 14. hxg5 {[%clk 0:01:50]}  c5 {[%clk 0:02:00]} 15. dxc6 {[%clk 0:01:42]}  Nxc6 {[%clk 0:01:57]} 16. Rd1 {[%clk 0:01:43]}  Nd4 {[%clk 0:01:49]} 17. e3 {[%clk 0:01:35]}  Ne6 {[%clk 0:00:55]} 18. e4 {[%clk 0:01:25]}  Nd4 {[%clk 0:00:51]} 19. exf5 {[%clk 0:01:24]}  Rxf5 {[%clk 0:00:52]} 20. Nce2 {[%clk 0:01:14]}  Ne6 {[%clk 0:00:49]} 21. Qxd6 {[%clk 0:01:12]}  Qe8 {[%clk 0:00:43]} 22. Qd7 {[%clk 0:00:59]}  Nc5 {[%clk 0:00:32]} 23. Qxe8+ {[%clk 0:00:52]}  Rxe8 {[%clk 0:00:32]} 24. Kg2 {[%clk 0:00:43]}  e4 {[%clk 0:00:32]} 25. fxe4 {[%clk 0:00:42]}  Nxe4 {[%clk 0:00:33]} 26. Rg4 {[%clk 0:00:36]}  Nxg5 {[%clk 0:00:33]} 27. Ng3 {[%clk 0:00:30]}  Rfe5 {[%clk 0:00:29]} 28. Nf3 {[%clk 0:00:26]}  Nxf3 {[%clk 0:00:20]} 29. Kxf3 {[%clk 0:00:27]}  Rf8+ {[%clk 0:00:18]} 30. Rf4 {[%clk 0:00:28]}  Rfe8 {[%clk 0:00:09]} 31. Rd7 {[%clk 0:00:26]}  Re3+ {[%clk 0:00:09]} 32. Kf2 {[%clk 0:00:23]}  R8e7 {[%clk 0:00:08]} 33. Rxe7 {[%clk 0:00:21]}  Rxe7 {[%clk 0:00:09]} 34. Ne4 {[%clk 0:00:19]}  Kg7 {[%clk 0:00:07]} 35. Nc3 {[%clk 0:00:19]}  g5 {[%clk 0:00:07]} 36. Rc4 {[%clk 0:00:19]}  Rf7+ {[%clk 0:00:07]} 37. Kg3 {[%clk 0:00:19]}  h5 {[%clk 0:00:08]} 38. Rc5 {[%clk 0:00:19]}  Kg6 {[%clk 0:00:08]} 39. Ne4 {[%clk 0:00:19]}  h4+ {[%clk 0:00:07]} 40. Kg2 {[%clk 0:00:17]}  Rf3 {[%clk 0:00:08]} 41. Kxf3 {[%clk 0:00:16]} 1-0


[Site "https://www.chess.com"]

[Event "Titled Tuesday Blitz April 18 Late 2023"]
[White "Garmash, Aliona"]
[Black "Atanasov, Radislav"]
[WhiteFideId "34127620"]
[BlackFideId "2901471"]
[WhiteElo "1959"]
[BlackElo "2077"]
[Result "0-1"]
[Round "09"]
[TimeControl "180+2"]
[Date "2023.04.18"]
[WhiteClock "0:00:09"]
[BlackClock "0:00:08"]

1. d4 {[%clk 0:03:00]}  Nf6 {[%clk 0:02:59]} 2. c4 {[%clk 0:03:00]}  c5 {[%clk 0:02:58]} 3. d5 {[%clk 0:03:00]}  e6 {[%clk 0:02:57]} 4. Nc3 {[%clk 0:03:00]}  exd5 {[%clk 0:02:53]} 5. cxd5 {[%clk 0:03:00]}  d6 {[%clk 0:02:54]} 6. Nf3 {[%clk 0:03:00]}  g6 {[%clk 0:02:43]} 7. Bf4 {[%clk 0:02:59]}  Bg7 {[%clk 0:02:37]} 8. Qa4+ {[%clk 0:02:58]}  Bd7 {[%clk 0:02:34]} 9. Qb3 {[%clk 0:02:58]}  b5 {[%clk 0:02:27]} 10. Bxd6 {[%clk 0:02:56]}  Qb6 {[%clk 0:02:15]} 11. Be5 {[%clk 0:02:56]}  O-O {[%clk 0:02:10]} 12. e3 {[%clk 0:02:54]}  c4 {[%clk 0:01:48]} 13. Qd1 {[%clk 0:02:52]}  b4 {[%clk 0:01:42]} 14. Nb1 {[%clk 0:02:35]}  Rc8 {[%clk 0:01:41]} 15. Be2 {[%clk 0:02:21]}  Bf5 {[%clk 0:01:36]} 16. Nbd2 {[%clk 0:01:56]}  c3 {[%clk 0:01:33]} 17. bxc3 {[%clk 0:01:54]}  bxc3 {[%clk 0:01:32]} 18. Nc4 {[%clk 0:01:32]}  c2 {[%clk 0:01:29]} 19. Qc1 {[%clk 0:01:09]}  Qb4+ {[%clk 0:01:13]} 20. Nfd2 {[%clk 0:01:03]}  Nbd7 {[%clk 0:00:57]} 21. Bd4 {[%clk 0:00:58]}  Nxd5 {[%clk 0:00:42]} 22. Bxg7 {[%clk 0:00:49]}  Kxg7 {[%clk 0:00:41]} 23. a3 {[%clk 0:00:36]}  Qa4 {[%clk 0:00:33]} 24. O-O {[%clk 0:00:20]}  Rab8 {[%clk 0:00:30]} 25. e4 {[%clk 0:00:19]}  Nf4 {[%clk 0:00:22]} 26. Bf3 {[%clk 0:00:17]}  Nd3 {[%clk 0:00:18]} 27. exf5 {[%clk 0:00:14]}  Nxc1 {[%clk 0:00:17]} 28. Raxc1 {[%clk 0:00:14]}  Rxc4 {[%clk 0:00:15]} 29. Nxc4 {[%clk 0:00:12]}  Qxc4 {[%clk 0:00:15]} 30. fxg6 {[%clk 0:00:13]}  hxg6 {[%clk 0:00:13]} 31. Rfe1 {[%clk 0:00:12]}  Nc5 {[%clk 0:00:11]} 32. h3 {[%clk 0:00:10]}  Rb2 {[%clk 0:00:10]} 33. Be4 {[%clk 0:00:09]}  Nb3 {[%clk 0:00:08]} 0-1


[Site "https://www.chess.com"]

[Event "Titled Tuesday Blitz April 18 Late 2023"]
[White "Michalski, Olaf"]
[Black "Buchenau, Frank"]
[WhiteFideId "1106740"]
[BlackFideId "4604350"]
[WhiteElo "2173"]
[BlackElo "2157"]
[Result "0-1"]
[Round "09"]
[TimeControl "180+2"]
[Date "2023.04.18"]
[WhiteClock "0:00:05"]
[BlackClock "0:01:56"]

1. d4 {[%clk 0:03:00]}  e6 {[%clk 0:03:00]} 2. Nf3 {[%clk 0:02:58]}  Nf6 {[%clk 0:02:59]} 3. c4 {[%clk 0:02:57]}  b6 {[%clk 0:02:59]} 4. a3 {[%clk 0:02:57]}  Ba6 {[%clk 0:02:59]} 5. Qc2 {[%clk 0:02:56]}  Bb7 {[%clk 0:02:57]} 6. Nc3 {[%clk 0:02:54]}  c5 {[%clk 0:02:57]} 7. e4 {[%clk 0:02:51]}  cxd4 {[%clk 0:02:56]} 8. Nxd4 {[%clk 0:02:51]}  Bc5 {[%clk 0:02:56]} 9. Nb3 {[%clk 0:02:35]}  Nc6 {[%clk 0:02:55]} 10. Bd3 {[%clk 0:02:05]}  Ne5 {[%clk 0:02:34]} 11. Nxc5 {[%clk 0:01:24]}  bxc5 {[%clk 0:02:33]} 12. Be3 {[%clk 0:01:23]}  Qc7 {[%clk 0:02:28]} 13. Nb5 {[%clk 0:00:51]}  Qc6 {[%clk 0:02:17]} 14. f3 {[%clk 0:00:41]}  d5 {[%clk 0:02:03]} 15. cxd5 {[%clk 0:00:37]}  exd5 {[%clk 0:02:03]} 16. O-O {[%clk 0:00:08]}  Nxd3 {[%clk 0:01:57]} 17. Qxd3 {[%clk 0:00:08]}  c4 {[%clk 0:01:58]} 18. exd5 {[%clk 0:00:05]}  Qxb5 {[%clk 0:01:56]} 0-1


[Site "https://www.chess.com"]